fUST/lending_fUST_20251120
["ID","MTS","AMOUNT","RATE_DAILY","PERIOD"]
[394476907,1763617644016,-500.0,8.924e-05,2]
[394476909,1763617644082,-1687.0,8.938e-05,2]
[394476910,1763617644150,-1070.0,8.938e-05,2]
[394476911,1763617644218,-500.0,8.938e-05,2]
[394476913,1763617644281,-500.0,8.945e-05,2]
[394476914,1763617644355,-500.0,8.953e-05,2]
[394476916,1763617644418,-1687.0,8.965e-05,2]
[394476917,1763617644488,-1070.0,8.965e-05,2]
[394476919,1763617644549,-3821.52844293,8.992e-05,2]
[394476920,1763617644615,-1687.0,8.993e-05,2]
[394476921,1763617644696,-1070.0,8.993e-05,2]
[394476922,1763617644762,-500.0,8.998e-05,2]
[394476923,1763617644829,-158.58443043,8.998e-05,2]
[394476924,1763617644896,-500.0,8.998e-05,2]
[394476925,1763617644958,-383.16292407,8.998e-05,2]
[394476926,1763617645020,-500.0,8.998e-05,2]
[394476927,1763617645086,-500.0,8.998e-05,2]
[394476928,1763617645147,-500.0,8.998e-05,2]
[394476929,1763617645213,-500.0,8.998e-05,2]
[394476931,1763617645281,-500.0,8.998e-05,2]
[394476932,1763617645350,-503.10817258,9e-05,2]
[394476933,1763617645420,-500.0,9e-05,2]
[394476934,1763617645487,-500.0,9e-05,2]
[394476935,1763617645550,-500.0,9e-05,2]
[394476936,1763617645615,-500.0,9e-05,2]
[394476937,1763617645678,-502.0215163,9e-05,2]
[394476938,1763617645741,-500.0,9e-05,2]
[394476939,1763617645802,-500.0,9e-05,2]
[394476940,1763617645863,-500.0,9e-05,2]
[394476941,1763617645922,-500.0,9e-05,2]
[394476942,1763617645981,-170.78746935,9e-05,2]
[394476943,1763617646041,-500.0,9e-05,2]
[394476944,1763617646101,-500.0,9e-05,2]
[394476945,1763617646161,-500.0,9e-05,2]
[394476946,1763617646218,-500.0,9e-05,2]
[394476947,1763617646276,-1703.09363109,9.02e-05,2]
[394476948,1763617646339,-1073.0391118,9.02e-05,2]
[394476949,1763617646399,-500.79026741,9.027e-05,2]
[394476950,1763617646462,-502.64282864,9.027e-05,2]
[394476951,1763617646522,-500.0,9.027e-05,2]
[394476952,1763617646582,-392.71537727,9.027e-05,2]
[394476953,1763617646642,-500.0,9.05e-05,2]
[394476955,1763617646699,-500.0,9.05e-05,2]
[394476956,1763617646758,-500.0,9.05e-05,2]
[394476957,1763617646818,-510.14664152,9.05e-05,2]
[394476958,1763617646879,-231.3944405,9.05e-05,2]
[394476959,1763617646938,-500.0,9.051e-05,2]
[394476960,1763617646995,-500.0,9.051e-05,2]
[394476961,1763617647081,-3821.52844293,9.095e-05,2]
[394476962,1763617647169,-7648.08682099,9.191e-05,2]
[394476963,1763617647238,-3821.52844293,9.198e-05,2]
[394476965,1763617647300,-500.0,9.212e-05,2]
[394476967,1763617647363,-3821.52844293,9.301e-05,2]
[394476969,1763617647427,-1000.0,9.302e-05,2]
[394476970,1763617647491,-510.78960354,9.302e-05,2]
[394476972,1763617647548,-1000.0,9.364e-05,2]
[394476973,1763617647608,-3821.52844293,9.404e-05,2]
[394476975,1763617647671,-501.69828739,9.42e-05,2]
[394476976,1763617647733,-37203.86728446,9.43e-05,2]
[394476977,1763617647815,-507.15690929,9.472e-05,2]
[394476978,1763617647902,-500.0,9.486e-05,2]
[394476979,1763617647973,-281.67929017,9.493e-05,2]
[394476980,1763617648041,-1081.95746858,9.501e-05,2]
[394476981,1763617648110,-3821.52844293,9.507e-05,2]
[394476982,1763617648178,-1000.0,9.546e-05,2]
[394476984,1763617648244,-1000.0,9.546e-05,2]
[394476985,1763617648313,-1001.08143425,9.546e-05,2]
[394476986,1763617648383,-1000.0,9.546e-05,2]
[394476987,1763617648457,-1000.0,9.546e-05,2]
[394476988,1763617648538,-1000.0,9.546e-05,2]
[394476990,1763617648610,-501.25007788,9.546e-05,2]
[394476991,1763617648681,-1000.95490487,9.548e-05,2]
[394476992,1763617648751,-826.60407059,9.548e-05,2]
[394476993,1763617648827,-1001.40588329,9.548e-05,2]
[394476995,1763617648894,-1000.0,9.548e-05,2]
[394476997,1763617648956,-1001.68394699,9.548e-05,2]
[394476998,1763617649022,-1002.21904381,9.548e-05,2]
[394476999,1763617649087,-1000.0,9.548e-05,2]
[394477001,1763617649146,-1000.0,9.548e-05,2]
[394477002,1763617649210,-1000.0,9.548e-05,2]
[394477003,1763617649276,-557.40171087,9.548e-05,2]
[394477004,1763617649341,-1000.0,9.548e-05,2]
[394477005,1763617649404,-1137.20149145,9.548e-05,2]
[394477007,1763617649467,-1000.0,9.574e-05,2]
[394477008,1763617649534,-1001.46867833,9.598e-05,2]
[394477009,1763617649598,-506.27706174,9.598e-05,2]
[394477010,1763617649666,-1002.12076565,9.598e-05,2]
[394477011,1763617649733,-1000.0,9.599e-05,2]
[394477012,1763617649816,-1000.0,9.599e-05,2]
[394477013,1763617649902,-3821.52844293,9.61e-05,2]
[394477014,1763617649970,-1367.92908325,9.712e-05,2]
[394477015,1763617650040,-3821.52844293,9.713e-05,2]
[394477017,1763617650107,-500.0,9.76e-05,2]
[394477018,1763617650168,-3821.52844293,9.816e-05,2]
[394477019,1763617650242,-235.42862691,9.817e-05,2]
[394477020,1763617650311,-942.71266042,9.85e-05,2]
[394477021,1763617650380,-1500.0,9.912e-05,2]
[394477023,1763617650443,-3825.34997137,9.919e-05,2]
[394477024,1763617650507,-37203.86728446,9.936e-05,2]
[394477025,1763617650570,-287.86324376,0.0001,2]
[394477026,1763617650631,-500.0,0.00010034,2]
[394477027,1763617650693,-1500.0,0.00010094,2]
[394477028,1763617650758,-1017.05192309,0.00010094,2]
[394477030,1763617650821,-1500.0,0.00010094,2]
[394477031,1763617650889,-1500.0,0.00010094,2]
[394477032,1763617650958,-1500.0,0.00010094,2]
[394477033,1763617651030,-1500.0,0.00010096,2]
[394477034,1763617651095,-1500.0,0.00010096,2]
[394477035,1763617651156,-346.12384497,0.00010096,2]
[394477037,1763617651224,-1500.0,0.00010096,2]
[394477038,1763617651293,-1501.85507471,0.00010096,2]
[394477039,1763617651360,-1511.09970253,0.00010122,2]
[394477040,1763617651427,-213.84129543,0.00010147,2]
[394477041,1763617651493,-1602.56333504,0.00010147,2]
[394477042,1763617651559,-604.33412739,0.00010308,2]
[394477043,1763617651622,-1011.88914189,0.0001046,2]
[394477044,1763617651684,-37203.86728446,0.00010541,2]
[394477045,1763617651748,-486.54895482,0.00010598,2]
[394477048,1763617651961,-422.61498691,0.00010618,2]
[394477049,1763617652034,-2008.60733107,0.00010642,2]
[394477050,1763617652105,-2000.0,0.00010642,2]
[394477052,1763617652169,-2006.08385754,0.00010642,2]
[394477054,1763617652228,-1397.49395033,0.00010642,2]
[394477055,1763617652290,-2000.0,0.00010644,2]
[394477056,1763617652348,-2000.0,0.00010644,2]
[394477057,1763617652410,-1172.4941277,0.00010644,2]
[394477059,1763617652472,-875.78811867,0.00010709,2]
[394477061,1763617652534,-200.08120816,0.00010815,2]
[394477062,1763617652599,-300.0,0.00010878,2]
[394477063,1763617652669,-300.0,0.00010878,2]
[394477065,1763617652734,-300.0,0.00010878,2]
[394477067,1763617652803,-300.0,0.00010878,2]
[394477069,1763617652867,-300.0,0.00010878,2]
[394477070,1763617652930,-300.0,0.00010878,2]
[394477071,1763617653006,-300.0,0.00010878,2]
[394477072,1763617653088,-300.0,0.00010878,2]
[394477074,1763617653153,-300.0,0.00010878,2]
[394477076,1763617653219,-300.0,0.00010878,2]
[394477077,1763617653285,-300.0,0.00010878,2]
[394477078,1763617653352,-300.0,0.00010878,2]
[394477080,1763617653415,-300.0,0.00010878,2]
[394477082,1763617653480,-300.0,0.00010878,2]
[394477083,1763617653542,-300.0,0.00010878,2]
[394477084,1763617653605,-600.0,0.00010878,2]
[394477085,1763617653670,-800.32483266,0.00010884,2]
[394477087,1763617653730,-6331.34640652,0.00010939,2]
[394477089,1763617653795,-1800.73087348,0.00010953,2]
[394477090,1763617653856,-999.0,0.00010959,2]
[394477091,1763617653920,-844.8090703,0.00010959,2]
[394477092,1763617653979,-740.07153093,0.00010959,2]
[394477093,1763617654045,-740.07153093,0.00010959,2]
[394477095,1763617654112,-740.07153093,0.00010959,2]
[394477097,1763617654171,-740.07153093,0.00010959,2]
[394477098,1763617654240,-740.07153093,0.00010959,2]
[394477099,1763617654311,-740.07153093,0.00010959,2]
[394477102,1763617654385,-740.07153093,0.00010959,2]
[394477103,1763617654454,-740.07153093,0.00010959,2]
[394477104,1763617654518,-740.07153093,0.00010959,2]
[394477105,1763617654583,-740.07153093,0.00010959,2]
[394477106,1763617654657,-740.07153093,0.00010959,2]
[394477108,1763617654722,-740.07153093,0.00010959,2]
[394477110,1763617654787,-740.07153093,0.00010959,2]
[394477112,1763617654849,-740.07153093,0.00010959,2]
[394477113,1763617654912,-740.07153093,0.00010959,2]
[394477115,1763617654974,-740.07153093,0.00010959,2]
[394477116,1763617655044,-740.07153093,0.00010959,2]
[394477118,1763617655110,-740.07153093,0.00010959,2]
[394477119,1763617655176,-740.07153093,0.00010959,2]
[394477121,1763617655250,-799.2772534,0.00010959,2]
[394477122,1763617655309,-799.2772534,0.00010959,2]
[394477123,1763617655366,-799.2772534,0.00010959,2]
[394477125,1763617655419,-799.2772534,0.00010959,2]
[394477126,1763617655474,-799.2772534,0.00010959,2]
[394477127,1763617655527,-799.2772534,0.00010959,2]
[394477128,1763617655580,-799.2772534,0.00010959,2]
[394477129,1763617655635,-799.2772534,0.00010959,2]
[394477130,1763617655694,-799.2772534,0.00010959,2]
[394477131,1763617655767,-885.35326527,0.00010959,2]
[394477133,1763617655846,-1000.0,0.00011,2]
[394477135,1763617655919,-151.0,0.00011,2]
[394477137,1763617655979,-151.0,0.00011,2]
[394477139,1763617656045,-3201.29933063,0.00011021,2]
[394477142,1763617656125,-1516.47984845,0.00011189,2]
[394477144,1763617656192,-1510.36872314,0.00011192,2]
[394477146,1763617656269,-1004.39227747,0.00011192,2]
[394477148,1763617656346,-571.37124153,0.000112,2]
[394477149,1763617656420,-989.0,0.00011352,2]
[394477151,1763617656486,-630.0,0.00011352,2]
[394477153,1763617656546,-2151.0,0.00011352,2]
[394477155,1763617656605,-414.0,0.00011352,2]
[394477157,1763617656667,-414.0,0.00011352,2]
[394477159,1763617656726,-583.79313016,0.00011547,2]
[394477161,1763617656786,-1050.82763429,0.00011607,2]
[394477163,1763617656848,-150.0,0.00011635,2]
[394477165,1763617656903,-150.0,0.00011635,2]
[394477166,1763617656961,-1868.13801652,0.00011666,2]
[394477168,1763617657022,-271.34146831,0.00011817,2]
[394477170,1763617657085,-158.023773,0.00011916,2]
[394477171,1763617657147,-720.0,0.00011966,2]
[394477172,1763617657204,-500.0,0.00012,2]
[394477173,1763617657261,-9390.1,0.00012329,2]
[394477174,1763617657318,-7825.08,0.00012329,2]
[394477175,1763617657373,-6520.9,0.00012329,2]
[394477176,1763617657431,-5434.09,0.00012329,2]
[394477177,1763617657490,-4528.41,0.00012329,2]
[394477178,1763617657547,-3773.67,0.00012329,2]
[394477179,1763617657606,-3144.73,0.00012329,2]
[394477180,1763617657670,-2620.6,0.00012329,2]
[394477181,1763617657737,-2183.84,0.00012329,2]
[394477182,1763617657810,-1819.86,0.00012329,2]
[394477183,1763617657885,-1516.55,0.00012329,2]
[394477184,1763617657961,-1263.8,0.00012329,2]
[394477186,1763617658034,-1053.16,0.00012329,2]
[394477187,1763617658109,-877.64,0.00012329,2]
[394477188,1763617658186,-731.36,0.00012329,2]
[394477189,1763617658266,-609.47,0.00012329,2]
[394477191,1763617658346,-507.89,0.00012329,2]
[394477192,1763617658424,-423.24,0.00012329,2]
[394477193,1763617658609,-352.7,0.00012329,2]
[394477195,1763617658694,-293.92,0.00012329,2]
[394477196,1763617658780,-244.93,0.00012329,2]
[394477197,1763617658871,-204.11,0.00012329,2]
[394477198,1763617658972,-170.09,0.00012329,2]
[394477199,1763617659060,-850.49,0.00012329,2]
[394477200,1763617659146,-1000.0,0.00013,2]
[394477201,1763617659235,-3369.74038242,0.00013,2]
[394477202,1763617659338,-864.0,0.00013162,2]
[394477203,1763617659423,-1000.0,0.000135,2]
[394477204,1763617659512,-500.0,0.00013698,2]
[394477205,1763617659602,-500.274373,0.00013698,2]
[394477206,1763617659689,-1000.0,0.00013698,2]
[394477207,1763617659781,-1000.0,0.00013698,2]
[394477208,1763617659872,-1000.0,0.00013698,2]
[394477209,1763617659961,-1000.0,0.00013698,2]
[394477210,1763617660053,-1000.0,0.00013698,2]
[394477211,1763617660143,-1000.0,0.00013698,2]
[394477212,1763617660243,-1000.0,0.00013698,2]
[394477213,1763617660352,-1000.0,0.00013698,2]
[394477214,1763617660446,-1037.97616265,0.00013698,2]
[394477215,1763617660536,-532.31843607,0.00013698,2]
[394477216,1763617660627,-336.30952653,0.00013698,2]
[394477217,1763617660720,-500.0,0.00013698,2]
[394477218,1763617660819,-500.0,0.00013698,2]
[394477219,1763617660910,-548.43610505,0.00013698,2]
[394477220,1763617661021,-500.0,0.00013698,2]
[394477221,1763617661109,-500.0,0.00013698,2]
[394477222,1763617661196,-500.0,0.00013698,2]
[394477223,1763617661282,-643.08856414,0.00013698,2]
[394477224,1763617661369,-500.0,0.00013698,2]
[394477225,1763617661458,-500.0,0.00013698,2]
[394477226,1763617661550,-500.0,0.00013698,2]
[394477227,1763617661646,-500.0,0.00013698,2]
[394477228,1763617661730,-500.0,0.00013698,2]
[394477229,1763617661816,-193.86359777,0.00013698,2]
[394477230,1763617661903,-500.0,0.00013698,2]
[394477231,1763617661989,-566.76527172,0.00013698,2]
[394477232,1763617662077,-500.0,0.00013698,2]
[394477233,1763617662163,-500.0,0.00013698,2]
[394477234,1763617662244,-500.0,0.00013698,2]
[394477235,1763617662323,-500.0,0.00013698,2]
[394477236,1763617662400,-500.0,0.00013698,2]
[394477237,1763617662477,-500.0,0.00013698,2]
[394477238,1763617662552,-500.0,0.00013698,2]
[394477239,1763617662629,-227.30451171,0.00013698,2]
[394477240,1763617662699,-7562.9521039,0.00013699,2]
[394477241,1763617662768,-1342.264498,0.00013699,2]
[394477242,1763617662833,-1000.0,0.00013699,2]
[394477243,1763617662892,-3173.966158,0.00013699,2]
[394477244,1763617662945,-16325.9002208,0.00013699,2]
[394477245,1763617662999,-160.0,0.00013699,2]
[394477246,1763617663060,-164.801,0.00013724,2]
[394477247,1763617663120,-307.2543097,0.00013817,2]
[394477248,1763617663179,-158.023773,0.00013917,2]
[394477249,1763617663239,-1000.0,0.00014,2]
[394477250,1763617663304,-260.0,0.00014247,2]
[394477251,1763617663365,-989.0,0.00014352,2]
[394477252,1763617663426,-630.0,0.00014352,2]
[394477253,1763617663495,-2151.0,0.00014352,2]
[394477254,1763617663557,-414.0,0.00014352,2]
[394477255,1763617663617,-414.0,0.00014352,2]
[394477256,1763617663680,-158.023773,0.000144,3]
[394477257,1763617663743,-1000.0,0.00014478,2]
[394477258,1763617663805,-460.3059596,0.00014521,2]
[394477259,1763617663868,-150.0,0.00014635,2]
[394477260,1763617663927,-360.0,0.00014795,2]
[394477261,1763617663990,-944.0,0.00015,2]
[394477262,1763617664058,-154.29885649,0.00015,2]
[394477263,1763617664119,-2894.25476547,0.00015,2]
[394477264,1763617664175,-998.43514369,0.00015,2]
[394477265,1763617664238,-511.088,0.00015021,2]
[394477267,1763617664298,-213.460518,0.00015068,2]
[394477268,1763617664354,-801.83591427,0.00015068,2]
[394477269,1763617664414,-460.0,0.00015342,2]
[394477270,1763617664480,-275.6388198,0.00015507,2]
[394477271,1763617664539,-153.0,0.00015507,2]
[394477272,1763617664600,-153.0,0.00015507,2]
[394477273,1763617664661,-154.7704639,0.00015507,2]
[394477274,1763617664720,-153.0,0.00015507,2]
[394477275,1763617664780,-640.45869949,0.00015749,7]
[394477276,1763617664839,-1367.92908325,0.00015798,2]
[394477277,1763617664902,-343.1671511,0.00015817,2]
[394477278,1763617664961,-560.0,0.0001589,2]
[394477279,1763617665024,-158.023773,0.00015918,2]
[394477280,1763617665091,-1000.0,0.00015926,2]
[394477281,1763617665151,-244.0,0.00015926,2]
[394477282,1763617665209,-100000.0,0.0001605,2]
[394477283,1763617665272,-649.04741042,0.00016073,2]
[394477284,1763617665329,-500.0,0.00016073,2]
[394477285,1763617665386,-500.0,0.00016073,2]
[394477286,1763617665444,-369.98783975,0.00016073,2]
[394477287,1763617665499,-500.0,0.00016073,2]
[394477288,1763617665552,-403.55805416,0.00016073,2]
[394477289,1763617665612,-3562.388,0.0001611,2]
[394477290,1763617665669,-564.93517599,0.00016188,7]
[394477291,1763617665727,-2257.48096327,0.00016236,7]
[394477292,1763617665790,-158.023773,0.0001624,3]
[394477293,1763617665850,-526.48951041,0.00016438,2]
[394477294,1763617665905,-526.48951041,0.00016438,2]
[394477295,1763617665960,-526.48951041,0.00016438,2]
[394477296,1763617666024,-526.48951041,0.00016438,2]
[394477297,1763617666086,-526.48951041,0.00016438,2]
[394477298,1763617666145,-526.48951041,0.00016438,2]
[394477299,1763617666325,-526.48951041,0.00016438,2]
[394477300,1763617666386,-526.48951041,0.00016438,2]
[394477301,1763617666447,-526.48951041,0.00016438,2]
[394477302,1763617666507,-526.48951041,0.00016438,2]
[394477303,1763617666568,-526.48951041,0.00016438,2]
[394477304,1763617666634,-526.48951041,0.00016438,2]
[394477305,1763617666696,-526.48951041,0.00016438,2]
[394477306,1763617666757,-526.48951041,0.00016438,2]
[394477307,1763617666820,-526.48951041,0.00016438,2]
[394477308,1763617666883,-526.48951041,0.00016438,2]
[394477309,1763617666943,-526.48951041,0.00016438,2]
[394477310,1763617667003,-526.48951041,0.00016438,2]
[394477311,1763617667068,-526.48951041,0.00016438,2]
[394477312,1763617667130,-526.48951041,0.00016438,2]
[394477313,1763617667192,-526.48951041,0.00016438,2]
[394477314,1763617667254,-526.48951041,0.00016438,2]
[394477315,1763617667313,-526.48951041,0.00016438,2]
[394477316,1763617667370,-526.48951041,0.00016438,2]
[394477317,1763617667426,-526.48951041,0.00016438,2]
[394477318,1763617667485,-526.48951041,0.00016438,2]
[394477319,1763617667546,-526.48951041,0.00016438,2]
[394477320,1763617667602,-526.48951041,0.00016438,2]
[394477321,1763617667658,-526.48951041,0.00016438,2]
[394477322,1763617667718,-526.48951041,0.00016438,2]
[394477323,1763617667778,-526.48951041,0.00016438,2]
[394477324,1763617667840,-526.48951041,0.00016438,2]
[394477325,1763617667901,-526.48951041,0.00016438,2]
[394477326,1763617667957,-526.48951041,0.00016438,2]
[394477327,1763617668016,-526.48951041,0.00016438,2]
[394477328,1763617668080,-526.48951041,0.00016438,2]
[394477329,1763617668143,-526.48951041,0.00016438,2]
[394477330,1763617668208,-526.48951041,0.00016438,2]
[394477332,1763617668269,-526.48951041,0.00016438,2]
[394477333,1763617668324,-526.48951041,0.00016438,2]
[394477334,1763617668381,-526.48951041,0.00016438,2]
[394477335,1763617668450,-526.48951041,0.00016438,2]
[394477336,1763617668513,-526.48951041,0.00016438,2]
[394477337,1763617668571,-526.48951041,0.00016438,2]
[394477338,1763617668628,-526.48951041,0.00016438,2]
[394477339,1763617668689,-526.48951041,0.00016438,2]
[394477340,1763617668752,-526.48951041,0.00016438,2]
[394477341,1763617668815,-526.48951041,0.00016438,2]
[394477342,1763617668880,-526.48951041,0.00016438,2]
[394477343,1763617668941,-526.48951041,0.00016438,2]
[394477344,1763617669002,-526.48951041,0.00016438,2]
[394477345,1763617669063,-526.48951041,0.00016438,2]
[394477346,1763617669122,-526.48951041,0.00016438,2]
[394477347,1763617669175,-526.48951041,0.00016438,2]
[394477348,1763617669231,-526.48951041,0.00016438,2]
[394477349,1763617669288,-526.48951041,0.00016438,2]
[394477350,1763617669344,-526.48951041,0.00016438,2]
[394477351,1763617669400,-526.48951041,0.00016438,2]
[394477352,1763617669463,-526.48951041,0.00016438,2]
[394477353,1763617669524,-526.48951041,0.00016438,2]
[394477354,1763617669589,-987.60091435,0.00016438,2]
[394477355,1763617669652,-987.60091435,0.00016438,2]
[394477356,1763617669711,-987.60091435,0.00016438,2]
[394477357,1763617669771,-987.60091435,0.00016438,2]
[394477358,1763617669834,-987.60091435,0.00016438,2]
[394477359,1763617669892,-987.60091435,0.00016438,2]
[394477360,1763617669946,-987.60091435,0.00016438,2]
[394477361,1763617670001,-987.60091435,0.00016438,2]
[394477362,1763617670057,-987.60091435,0.00016438,2]
[394477363,1763617670114,-987.60091435,0.00016438,2]
[394477364,1763617670166,-987.60091435,0.00016438,2]
[394477365,1763617670222,-987.60091435,0.00016438,2]
[394477366,1763617670278,-987.60091435,0.00016438,2]
[394477367,1763617670334,-987.60091435,0.00016438,2]
[394477368,1763617670393,-987.60091435,0.00016438,2]
[394477369,1763617670453,-987.60091435,0.00016438,2]
[394477370,1763617670510,-987.60091435,0.00016438,2]
[394477371,1763617670566,-987.60091435,0.00016438,2]
[394477372,1763617670623,-987.60091435,0.00016438,2]
[394477373,1763617670684,-987.60091435,0.00016438,2]
[394477374,1763617670748,-987.60091435,0.00016438,2]
[394477375,1763617670811,-987.60091435,0.00016438,2]
[394477376,1763617670873,-987.60091435,0.00016438,2]
[394477377,1763617670927,-987.60091435,0.00016438,2]
[394477378,1763617670983,-987.60091435,0.00016438,2]
[394477379,1763617671039,-987.60091435,0.00016438,2]
[394477380,1763617671096,-987.60091435,0.00016438,2]
[394477381,1763617671151,-987.60091435,0.00016438,2]
[394477382,1763617671208,-987.60091435,0.00016438,2]
[394477383,1763617671267,-987.60091435,0.00016438,2]
[394477384,1763617671324,-987.60091435,0.00016438,2]
[394477385,1763617671380,-987.60091435,0.00016438,2]
[394477386,1763617671436,-987.60091435,0.00016438,2]
[394477387,1763617671506,-987.60091435,0.00016438,2]
[394477388,1763617671562,-987.60091435,0.00016438,2]
[394477389,1763617671624,-987.60091435,0.00016438,2]
[394477390,1763617671681,-987.60091435,0.00016438,2]
[394477391,1763617671737,-987.60091435,0.00016438,2]
[394477392,1763617671795,-987.60091435,0.00016438,2]
[394477393,1763617671855,-987.60091435,0.00016438,2]
[394477394,1763617671913,-987.60091435,0.00016438,2]
[394477395,1763617671972,-987.60091435,0.00016438,2]
[394477396,1763617672035,-987.60091435,0.00016438,2]
[394477397,1763617672104,-987.60091435,0.00016438,2]
[394477398,1763617672170,-987.60091435,0.00016438,2]
[394477399,1763617672239,-987.60091435,0.00016438,2]
[394477400,1763617672304,-987.60091435,0.00016438,2]
[394477401,1763617672368,-987.60091435,0.00016438,2]
[394477402,1763617672429,-987.60091435,0.00016438,2]
[394477403,1763617672488,-987.60091435,0.00016438,2]
[394477404,1763617672723,-987.60091435,0.00016438,2]
[394477405,1763617672803,-521.2246153,0.00016438,2]
[394477406,1763617672874,-521.2246153,0.00016438,2]
[394477407,1763617672937,-521.2246153,0.00016438,2]
[394477408,1763617673001,-521.2246153,0.00016438,2]
[394477409,1763617673067,-521.2246153,0.00016438,2]
[394477410,1763617673130,-521.2246153,0.00016438,2]
[394477411,1763617673193,-521.2246153,0.00016438,2]
[394477412,1763617673261,-521.2246153,0.00016438,2]
[394477413,1763617673328,-521.2246153,0.00016438,2]
[394477414,1763617673400,-521.2246153,0.00016438,2]
[394477415,1763617673478,-521.2246153,0.00016438,2]
[394477416,1763617673547,-521.2246153,0.00016438,2]
[394477417,1763617673619,-521.2246153,0.00016438,2]
[394477418,1763617673703,-521.2246153,0.00016438,2]
[394477419,1763617673773,-521.2246153,0.00016438,2]
[394477420,1763617673841,-521.2246153,0.00016438,2]
[394477421,1763617673909,-521.2246153,0.00016438,2]
[394477422,1763617673971,-521.2246153,0.00016438,2]
[394477423,1763617674041,-521.2246153,0.00016438,2]
[394477424,1763617674122,-521.2246153,0.00016438,2]
[394477425,1763617674206,-521.2246153,0.00016438,2]
[394477426,1763617674291,-521.2246153,0.00016438,2]
[394477427,1763617674377,-521.2246153,0.00016438,2]
[394477428,1763617674461,-521.2246153,0.00016438,2]
[394477429,1763617674546,-521.2246153,0.00016438,2]
[394477430,1763617674631,-521.2246153,0.00016438,2]
[394477431,1763617674715,-521.2246153,0.00016438,2]
[394477432,1763617674803,-521.2246153,0.00016438,2]
[394477433,1763617674899,-962.91089148,0.00016438,2]
[394477434,1763617674990,-962.91089148,0.00016438,2]
[394477435,1763617675082,-962.91089148,0.00016438,2]
[394477436,1763617675176,-962.91089148,0.00016438,2]
[394477437,1763617675270,-962.91089148,0.00016438,2]
[394477438,1763617675367,-962.91089148,0.00016438,2]
[394477439,1763617675465,-962.91089148,0.00016438,2]
[394477440,1763617675583,-962.91089148,0.00016438,2]
[394477441,1763617675701,-962.91089148,0.00016438,2]
[394477442,1763617675817,-962.91089148,0.00016438,2]
[394477443,1763617675938,-962.91089148,0.00016438,2]
[394477444,1763617676050,-962.91089148,0.00016438,2]
[394477445,1763617676172,-962.91089148,0.00016438,2]
[394477446,1763617676295,-962.91089148,0.00016438,2]
[394477447,1763617676391,-962.91089148,0.00016438,2]
[394477448,1763617676489,-962.91089148,0.00016438,2]
[394477449,1763617676609,-962.91089148,0.00016438,2]
[394477450,1763617676728,-962.91089148,0.00016438,2]
[394477451,1763617676851,-962.91089148,0.00016438,2]
[394477452,1763617676974,-962.91089148,0.00016438,2]
[394477453,1763617677088,-962.91089148,0.00016438,2]
[394477454,1763617677190,-962.91089148,0.00016438,2]
[394477455,1763617677311,-962.91089148,0.00016438,2]
[394477456,1763617677434,-962.91089148,0.00016438,2]
[394477457,1763617677561,-962.91089148,0.00016438,2]
[394477458,1763617677684,-962.91089148,0.00016438,2]
[394477459,1763617677804,-962.91089148,0.00016438,2]
[394477460,1763617677907,-962.91089148,0.00016438,2]
[394477461,1763617678005,-962.91089148,0.00016438,2]
[394477462,1763617678102,-962.91089148,0.00016438,2]
[394477463,1763617678199,-962.91089148,0.00016438,2]
[394477464,1763617678291,-521.22461526,0.00016438,2]
[394477465,1763617678384,-521.22461526,0.00016438,2]
[394477466,1763617678473,-962.91089149,0.00016438,2]
[394477467,1763617678560,-962.91089149,0.00016438,2]
[394477468,1763617678645,-962.91089149,0.00016438,2]
[394477469,1763617678731,-962.91089149,0.00016438,2]
[394477470,1763617678816,-962.91089147,0.00016438,2]
[394477471,1763617678898,-660.0,0.00016438,2]
[394477472,1763617678979,-258.50875083,0.00016438,2]
[394477473,1763617679057,-181.24,0.0001644,2]
[394477474,1763617679134,-500.0,0.00016473,2]
[394477475,1763617679208,-500.0,0.00016473,2]
[394477476,1763617679278,-500.0,0.00016473,2]
[394477477,1763617679345,-500.0,0.00016473,2]